bitfinex/quotes_ETHUSD_20240713
["timestamp","ask_amount","ask_price","bid_price","bid_amount"]
[1720837740490,2.00307276,3134.9,3134.8,0.17777041]
[1720837740806,3.10823524,3134.9,3134.8,0.17777041]
[1720837741516,3.10800037,3134.9,3134.8,0.17777041]
[1720837741979,1.10517336,3134.9,3134.8,0.17777041]
[1720837744088,3.10782392,3134.9,3134.8,0.17777041]
[1720837744481,3.10780148,3134.9,3134.8,0.17777041]
[1720837744687,3.10780211,3134.9,3134.8,0.17777041]
[1720837744974,1.1052143,3134.9,3134.8,0.17777041]
[1720837745500,2.4665,3135.0,3134.8,0.17777041]
[1720837745705,1.10521442,3134.9,3134.8,0.17777041]
[1720837746396,2.94678702,3135.0,3134.8,0.17777041]
[1720837746586,1.10518576,3134.9,3134.8,0.17777041]
[1720837747886,3.10804021,3134.9,3134.8,0.17777041]
[1720837748505,2.00284585,3134.9,3134.8,0.17777041]
[1720837748709,1.10515356,3134.9,3134.8,0.17777041]
[1720837749487,3.49035356,3134.9,3134.8,0.17777041]
[1720837751879,3.49038762,3134.9,3134.8,0.17777041]
[1720837752577,4.07307076,3134.9,3134.8,0.17777041]
[1720837752782,3.49038762,3134.9,3134.8,0.17777041]
[1720837752984,3.49038762,3134.9,3134.5,0.816]
[1720837753206,2.00270994,3134.7,3134.6,0.17793935]
[1720837753399,3.10789756,3134.7,3134.5,0.816]
[1720837753598,1.10518762,3134.6,3134.5,0.816]
[1720837755313,1.10522978,3134.6,3134.5,0.816]
[1720837755714,2.3852,3134.9,3134.5,0.816]
[1720837755909,2.00305838,3134.7,3134.5,0.816]
[1720837756104,1.10522982,3134.6,3134.5,0.816]
[1720837756424,3.1082882,3134.6,3134.5,0.816]
[1720837758216,3.10878332,3134.6,3134.5,0.816]
[1720837758590,2.3852,3134.9,3134.5,0.816]
[1720837758790,2.00380636,3134.6,3134.5,0.816]
[1720837759019,3.10904362,3134.6,3134.5,0.816]
[1720837762118,3.10940435,3134.6,3134.5,0.816]
[1720837762424,4.21463335,3134.6,3134.5,0.816]
[1720837763930,2.210458,3134.6,3134.5,0.816]
[1720837764134,4.21464549,3134.6,3134.5,0.816]
[1720837764309,4.21460628,3134.6,3134.5,0.816]
[1720837764711,4.21460039,3134.6,3134.5,0.816]
[1720837765320,2.210458,3134.6,3134.5,0.816]
[1720837765531,1.105229,3134.6,3134.5,0.816]
[1720837765834,2.21048145,3134.6,3134.5,0.816]
[1720837766041,2.21048141,3134.6,3134.5,0.816]
[1720837767639,2.21048141,3134.6,3134.5,0.99402549]
[1720837768810,1.105229,3134.6,3134.5,0.99402549]
[1720837769011,2.21047379,3134.6,3134.5,0.99402549]
[1720837770843,5.00380499,3134.6,3134.5,0.17802549]
[1720837771047,5.06186515,3134.6,3134.5,0.17802549]
[1720837771214,7.82414721,3134.6,3134.0,0.816]
[1720837771418,2.33793857,3134.3,3134.1,0.17835253]
[1720837771745,1.10524479,3134.2,3134.0,0.816]
[1720837772453,3.10897025,3134.1,3134.0,0.816]
[1720837775063,3.10897025,3134.1,3133.8,5.23368]
[1720837775356,3.10897025,3134.1,3134.0,0.816]
[1720837775357,2.00353164,3134.1,3134.0,0.816]
[1720837775541,3.10897925,3134.1,3134.0,0.816]
[1720837775715,2.00353164,3134.1,3134.0,0.816]
[1720837775917,3.10813176,3134.1,3134.0,0.816]
[1720837776214,3.501729,3134.6,3134.0,0.816]
[1720837776414,2.00247065,3134.2,3134.0,0.816]
[1720837776622,3.10790932,3134.1,3134.0,0.816]
[1720837777752,5.50440932,3134.1,3134.0,0.816]
[1720837777952,5.50440932,3134.1,3133.7,3.0]
[1720837777953,5.50447735,3134.1,3133.8,0.816]
[1720837778143,1.10545187,3134.0,3133.8,0.816]
[1720837778447,2.3965,3134.1,3133.8,0.816]
[1720837778654,1.10546537,3134.0,3133.8,0.816]
[1720837778947,1.10546537,3133.9,3133.8,0.816]
[1720837779449,4.39833405,3134.1,3133.8,0.816]
[1720837779750,1.10547883,3134.0,3133.8,0.816]
[1720837779955,1.10547883,3133.9,3133.8,0.816]
[1720837781359,1.10547883,3134.0,3133.8,0.816]
[1720837781659,1.10547883,3133.9,3133.7,2.4165]
[1720837781865,1.66761644,3133.8,3133.7,3.181541]
[1720837782164,2.77309527,3133.8,3133.7,6.997541]
[1720837782768,2.3966,3134.5,3133.7,7.17627616]
[1720837782949,2.43953788,3133.8,3133.7,5.59523516]
[1720837783154,2.43953788,3133.8,3133.7,6.41123516]
[1720837784337,2.43953788,3133.8,3133.7,8.64501516]
[1720837784554,1.10547106,3133.8,3133.7,8.64501516]
[1720837784952,1.10547106,3133.8,3133.7,9.73289968]
[1720837785152,1.10547106,3133.8,3133.7,11.96667968]
[1720837785968,1.33406682,3134.1,3133.9,2.23363]
[1720837786146,1.10533738,3134.0,3133.9,2.23363]
[1720837786347,1.10530062,3134.0,3133.9,3.49190387]
[1720837786762,1.33406682,3134.1,3133.9,8.14199387]
[1720837786963,1.10529434,3134.0,3133.9,8.14199387]
[1720837788978,1.33406682,3134.1,3134.0,2.23356]
[1720837789184,2.43935688,3134.1,3134.0,2.23356]
[1720837789378,2.43935688,3134.1,3134.0,3.04775239]
[1720837789873,2.43936656,3134.1,3134.0,3.04775239]
[1720837793404,2.43937678,3134.1,3134.0,3.04775239]
[1720837795373,1.1052884,3134.1,3134.0,3.04775239]
[1720837795578,2.44015133,3134.1,3134.0,3.04775239]
[1720837796694,1.66862855,3134.3,3134.1,2.23349]
[1720837796918,7.38,3134.6,3134.2,0.816]
[1720837797077,1.66860621,3134.3,3134.2,0.816]
[1720837797268,1.10528743,3134.3,3134.2,0.816]
[1720837797589,1.1052874,3134.3,3134.2,0.816]
[1720837797791,1.1052874,3134.3,3134.2,0.99433278]
[1720837799864,1.10530098,3134.4,3134.2,0.99433278]
[1720837800092,1.10530098,3134.3,3134.2,0.99433278]
[1720837800344,2.00269225,3134.5,3134.3,2.2333]
[1720837800555,1.10529113,3134.4,3134.3,4.4933]
[1720837800823,1.10529113,3134.4,3134.3,3.0493]
[1720837802861,2.00290027,3134.5,3134.3,3.0493]
[1720837802997,1.10529711,3134.4,3134.3,3.0493]
[1720837806237,7.71400566,3135.1,3134.3,3.0493]
[1720837806422,1.10529645,3134.4,3134.3,3.0493]
[1720837806598,7.71400566,3135.1,3134.3,3.0493]
[1720837806806,2.00350033,3134.5,3134.3,3.0493]
[1720837807026,1.10529521,3134.4,3134.3,3.0493]
[1720837807708,1.10529521,3134.4,3134.3,5.3093]
[1720837807916,1.10529521,3134.5,3134.4,2.23328]
[1720837808125,1.10529521,3134.5,3134.4,3.04928]
[1720837809040,1.10524453,3134.5,3134.4,3.04928]
[1720837809619,2.3966,3134.9,3134.4,3.04928]
[1720837809834,2.00373513,3134.7,3134.4,3.04928]
[1720837810135,1.10524282,3134.6,3134.4,3.04928]
[1720837810347,1.10524282,3134.5,3134.4,3.82137128]
[1720837810550,1.10524282,3134.5,3134.4,6.05465128]
[1720837811252,1.10524282,3134.5,3134.4,4.46656]
[1720837811421,1.10524282,3134.5,3134.4,2.23328]
[1720837812918,2.4174,3134.8,3134.4,2.23328]
[1720837813125,2.0036653,3134.6,3134.4,2.23328]
[1720837813324,1.10524568,3134.5,3134.4,2.23328]
[1720837813726,1.10524568,3134.5,3134.2,3.22769278]
[1720837813938,1.66967316,3134.3,3134.2,3.22769278]
[1720837814137,2.77491884,3134.3,3134.2,3.22769278]
[1720837814946,2.77493751,3134.3,3134.2,3.22769278]
[1720837815979,1.10526435,3134.3,3134.2,0.99433278]
[1720837816328,2.4174,3134.5,3134.2,0.99433278]
[1720837816527,3.10932772,3134.4,3134.2,0.99433278]
[1720837816726,1.10532749,3134.3,3134.2,0.99433278]
[1720837817047,1.10531615,3134.3,3134.2,0.99433278]
[1720837819556,3.10952654,3134.3,3134.2,0.99433278]
[1720837819759,1.10533982,3134.3,3134.2,0.99433278]
[1720837820140,3.10952654,3134.3,3134.2,0.99433278]
[1720837820340,2.4174,3134.5,3134.2,0.99433278]
[1720837820544,1.10532331,3134.3,3134.2,0.99433278]
[1720837823327,1.10532476,3134.3,3134.2,0.99433278]
[1720837825682,3.10995987,3134.3,3134.2,0.99433278]
[1720837826085,1.10532476,3134.3,3134.2,0.99433278]
[1720837826283,1.10532476,3134.3,3134.2,0.17833278]
[1720837826582,1.10532476,3134.3,3133.9,2.23358]
[1720837826583,6.0999723,3134.3,3133.9,0.816]
[1720837826784,4.650691,3134.3,3134.2,0.17829244]
[1720837826983,5.75616835,3134.3,3134.2,0.17829244]
[1720837827186,5.75618268,3134.3,3133.9,0.816]
[1720837827372,2.00510696,3134.0,3133.9,0.816]
[1720837827589,1.10547708,3134.0,3133.9,0.816]
[1720837828055,3.11044087,3134.0,3133.9,0.816]
[1720837828255,1.10547708,3134.0,3133.9,0.816]
[1720837829652,1.10547708,3134.1,3133.9,0.816]
[1720837830081,2.3115,3134.3,3133.9,0.816]
[1720837830282,1.10548528,3134.0,3133.9,0.816]
[1720837830491,3.11031184,3134.0,3133.9,0.816]
[1720837831290,3.11031184,3134.0,3133.9,0.99454596]
[1720837833362,3.10935591,3134.0,3133.9,0.99454596]
[1720837833592,3.1093709,3134.0,3133.9,0.99454596]
[1720837834278,3.1093709,3134.0,3133.9,0.17854596]
[1720837834673,3.72792331,3134.0,3133.9,0.17854596]
[1720837834872,3.72792331,3134.0,3133.8,0.816]
[1720837835078,3.10920769,3133.9,3133.8,0.816]
[1720837836273,1.10548622,3133.9,3133.8,0.816]
[1720837836995,2.3115,3134.0,3133.8,0.816]
[1720837837166,1.10550911,3133.9,3133.8,0.816]
[1720837837699,1.10549557,3133.9,3133.8,0.816]
[1720837840374,4.31458301,3134.0,3133.8,0.816]
[1720837840375,2.3115,3134.0,3133.8,0.816]
[1720837840578,1.10550801,3133.9,3133.8,0.816]
[1720837841409,1.10550824,3133.9,3133.8,0.816]
[1720837843819,2.2707,3134.2,3133.8,0.816]
[1720837844132,3.10787705,3134.1,3133.8,0.816]
[1720837844291,1.10548822,3134.0,3133.8,0.816]
[1720837844492,2.00238883,3134.1,3133.8,0.816]
[1720837844493,1.10548822,3133.9,3133.8,0.816]
[1720837844898,1.10548822,3134.0,3133.8,0.816]
[1720837845922,1.1054877,3133.9,3133.8,0.816]
[1720837846491,1.1054877,3133.9,3133.4,2.23398]
[1720837846821,2.77415513,3133.8,3133.7,0.816]
[1720837847188,2.2707,3134.2,3133.7,0.816]
[1720837847388,1.66867551,3133.8,3133.7,0.816]
[1720837847605,2.77416702,3133.8,3133.7,0.816]
[1720837847808,2.77414149,3133.8,3133.7,0.816]
[1720837849210,2.77414149,3133.8,3133.7,5.31358]
[1720837849407,2.44046375,3133.8,3133.7,5.844938]
[1720837850435,2.44048771,3133.8,3133.7,5.844938]
[1720837850647,1.66888522,3133.9,3133.7,5.844938]
[1720837850850,1.10544755,3133.8,3133.7,5.844938]
[1720837852917,1.10544755,3133.8,3133.7,0.816]
[1720837853102,2.77433277,3133.8,3133.7,0.816]
[1720837853301,1.10544755,3133.8,3133.7,0.816]
[1720837854201,1.10549918,3133.8,3133.7,0.816]
[1720837856942,1.10550264,3133.8,3133.7,0.816]
[1720837857632,2.00325412,3133.9,3133.7,0.816]
[1720837857829,1.10554368,3133.8,3133.7,0.816]
[1720837858029,2.2707,3134.1,3133.7,0.816]
[1720837858411,2.00329343,3133.9,3133.7,0.816]
[1720837858612,1.10553936,3133.8,3133.7,0.816]
[1720837860531,2.2707,3134.3,3133.7,0.816]
[1720837860720,1.10550763,3133.8,3133.7,0.816]
[1720837860930,1.1055064,3133.8,3133.7,0.816]
[1720837861327,1.1055064,3133.8,3133.7,0.99476039]
[1720837863934,3.10896554,3133.8,3133.7,0.99476039]
[1720837867334,3.10898191,3133.8,3133.7,0.99476039]
[1720837867735,2.4789,3133.9,3133.7,0.99476039]
[1720837867939,3.10942533,3133.8,3133.7,0.99476039]
[1720837868336,1.10556027,3133.8,3133.7,0.99476039]
[1720837869055,1.69779055,3133.8,3133.7,0.17876039]
[1720837869361,6.51453312,3133.8,3133.7,0.17876039]
[1720837869561,2.4789,3133.7,3133.1,0.816]
[1720837869744,2.00363175,3133.2,3132.8,7.41]
[1720837869944,3.10919202,3133.1,3132.9,0.816]
[1720837870125,1.10556027,3133.0,3132.9,0.816]
[1720837870558,1.10556027,3133.1,3132.9,0.816]
[1720837873223,1.10556027,3133.1,3132.6,4.64161]
[1720837873423,1.66820767,3132.9,3132.7,3.0]
[1720837873620,1.66820767,3132.9,3132.8,0.816]
[1720837873824,2.7740034,3132.9,3132.8,0.816]
[1720837874126,2.4789,3133.3,3132.8,0.816]
[1720837874331,2.77388943,3132.9,3132.8,0.816]
[1720837875035,1.10579643,3132.9,3132.8,0.816]
[1720837875231,1.10579643,3133.0,3132.8,0.816]
[1720837875431,1.66724931,3132.9,3132.8,0.816]
[1720837875650,2.77304574,3132.9,3132.8,0.816]
[1720837876457,2.77304574,3132.9,3132.8,0.99553647]
[1720837877464,2.4789,3133.3,3132.8,0.99553647]
[1720837877759,1.66661612,3132.9,3132.8,0.99553647]
[1720837877957,2.4789,3133.3,3132.8,0.99553647]
[1720837878159,1.66655857,3132.9,3132.8,0.99553647]
[1720837878345,2.77238096,3132.9,3132.8,0.99553647]
[1720837878523,2.4789,3133.3,3132.8,0.99553647]
[1720837878727,1.66628138,3132.9,3132.8,0.99553647]
[1720837879055,2.77213438,3132.9,3132.8,0.99553647]
[1720837879731,2.77213438,3132.9,3132.8,0.17953647]
[1720837879930,1.105853,3132.9,3132.8,0.17953647]
[1720837880134,1.105853,3133.0,3132.8,0.17953647]
[1720837880333,1.6656053,3132.9,3132.8,0.17953647]
[1720837880532,2.77150195,3132.9,3132.8,0.17953647]
[1720837880946,1.10588472,3132.9,3132.8,0.17953647]
[1720837881139,2.77148965,3132.9,3132.8,0.17953647]
[1720837884369,0.47263277,3133.1,3132.8,0.17953647]
[1720837884554,2.77050766,3132.9,3132.8,0.17953647]
[1720837885600,5.3979217,3132.9,3132.8,0.17953647]
[1720837885804,3.73330927,3132.9,3132.8,0.17953647]
[1720837886354,3.73330927,3132.9,3132.0,3.05097]
[1720837886582,1.33081638,3132.4,3132.0,3.05097]
[1720837886865,1.10589523,3132.3,3132.1,0.17794249]
[1720837887061,2.43671161,3132.3,3132.1,0.17794249]
[1720837887266,1.10589523,3132.2,3132.0,0.816]
[1720837887812,1.10611798,3132.1,3132.0,0.816]
[1720837888155,0.24363908,3132.1,3131.2,2.4446]
[1720837888464,0.24363908,3132.1,3131.4,0.816]
[1720837888465,1.33027277,3132.0,3131.4,0.816]
[1720837888666,2.43639156,3131.9,3131.4,0.816]
[1720837888878,1.10611879,3131.8,3131.6,0.816]
[1720837889276,1.10611879,3131.8,3131.6,3.05127]
[1720837889485,1.10611879,3131.9,3131.6,3.05127]
[1720837889664,1.10626708,3131.8,3131.6,3.05127]
[1720837889874,1.33027277,3132.0,3131.6,5.28649]
[1720837890074,1.10626538,3131.9,3131.6,5.28649]
[1720837890276,1.10626538,3131.8,3131.4,2.23539]
[1720837890498,1.10626538,3131.9,3131.4,3.05139]
[1720837891068,1.106277,3131.8,3131.4,3.05139]
[1720837891266,2.3031,3132.1,3131.5,0.17866316]
[1720837891267,3.63337277,3132.1,3131.5,0.17866316]
[1720837891462,1.10627557,3132.0,3131.5,0.17866316]
[1720837891667,1.10627557,3131.9,3131.5,2.41400316]
[1720837891981,1.10627557,3131.8,3131.6,0.816]
[1720837892177,1.10627557,3132.0,3131.6,0.816]
[1720837892390,1.10627554,3131.9,3131.7,0.17849388]
[1720837892591,1.33027277,3132.1,3131.8,0.816]
[1720837892795,1.10627482,3132.0,3131.8,0.816]
[1720837893011,1.33027277,3132.4,3131.9,0.99432462]
[1720837893207,1.10615492,3132.3,3131.9,0.99432462]
[1720837893360,1.10615492,3132.2,3131.9,0.816]
[1720837893689,1.10615492,3132.2,3132.0,0.17824]
[1720837893898,1.10615492,3132.2,3132.0,2.41318]
[1720837894068,2.43642769,3132.5,3132.0,2.41318]
[1720837894268,1.33027277,3132.5,3132.0,2.41318]
[1720837894473,1.1061162,3132.4,3132.0,2.41318]
[1720837894783,1.1061162,3132.3,3132.0,2.41318]
[1720837894985,1.1061162,3132.4,3132.0,2.41318]
[1720837895796,1.1061162,3132.4,3132.0,4.64811]
[1720837896597,1.1061162,3132.5,3132.0,4.64811]
[1720837896758,1.51537841,3132.5,3132.0,4.64811]
[1720837896963,1.1061162,3132.4,3132.0,4.64811]
[1720837897558,1.1061162,3132.4,3132.0,2.41317]
[1720837897758,0.40926221,3132.5,3132.0,2.41317]
[1720837897965,1.10612224,3132.4,3132.0,2.41317]
[1720837898199,1.32725248,3132.6,3132.0,2.41317]
[1720837898381,1.10612237,3132.5,3132.0,2.41317]
[1720837898586,1.10612237,3132.4,3132.0,2.41317]
[1720837898790,1.10612237,3132.3,3132.0,2.41317]
[1720837898977,1.10612237,3132.2,3132.0,4.64812]
[1720837899298,1.10612237,3132.1,3132.0,2.41317]
[1720837899468,1.10612237,3132.1,3132.0,4.6481]
[1720837900305,1.10612237,3132.1,3132.0,0.17824]
[1720837900595,1.32725248,3132.3,3132.0,0.17824]
[1720837900802,1.46925564,3132.2,3132.0,0.17824]
[1720837900964,1.10622039,3132.1,3131.7,2.23516]
[1720837901297,1.10620726,3132.0,3131.7,2.23516]
[1720837901465,1.10620726,3131.9,3131.7,2.23516]
[1720837901670,1.10620726,3132.1,3131.7,2.23516]
[1720837902768,1.38585831,3132.1,3131.7,2.23516]
[1720837902973,1.10620726,3132.0,3131.7,2.23516]
[1720837904567,0.27965105,3132.1,3131.7,2.23516]
[1720837904763,1.10625552,3132.0,3131.7,2.23516]
[1720837904969,1.10625552,3131.9,3131.7,2.23516]
[1720837905171,1.10625552,3131.8,3131.4,3.05138]
[1720837905370,1.10625552,3132.0,3131.5,2.23532]
[1720837905671,1.10625552,3131.9,3131.5,2.23532]
[1720837905871,1.10625552,3131.8,3131.5,2.23532]
[1720837906171,1.10625552,3131.7,3131.5,2.23532]
[1720837906401,0.36303525,3132.2,3131.6,0.17857262]
[1720837906574,1.27527891,3132.1,3131.6,0.17857262]
[1720837906924,1.10624858,3132.0,3131.6,0.17857262]
[1720837907075,1.10624858,3131.9,3131.6,0.17857262]
[1720837907276,1.10624858,3131.8,3131.6,0.17857262]
[1720837907601,1.10624858,3131.7,3131.6,2.41384262]
[1720837908010,1.10624846,3131.7,3131.6,2.41384262]
[1720837908212,0.36303525,3132.2,3131.6,3.22984262]
[1720837908524,1.27528772,3132.1,3131.6,3.22984262]
[1720837908687,1.10624746,3132.0,3131.6,3.22984262]
[1720837909200,1.1062481,3131.9,3131.6,3.22984262]
[1720837909399,0.16904026,3132.1,3131.6,3.22984262]
[1720837909400,1.1062481,3131.8,3131.6,3.22984262]
[1720837909623,1.1062481,3132.0,3131.6,3.22984262]
[1720837909779,1.1062481,3131.9,3131.6,3.22984262]
[1720837909983,1.1062481,3132.0,3131.6,3.22984262]
[1720837910184,1.1062481,3131.9,3131.6,3.22984262]
[1720837910431,1.1062481,3132.0,3131.6,3.22984262]
[1720837910633,1.1062481,3131.9,3131.6,3.22984262]
[1720837910934,0.16904026,3132.1,3131.6,5.46507262]
[1720837911109,1.69058635,3132.2,3131.7,4.6256]
[1720837911110,1.10625409,3131.8,3131.7,4.6256]
[1720837911315,1.32795454,3132.3,3131.8,2.23507]
[1720837911505,3.96304317,3132.4,3131.8,2.23507]
[1720837911506,2.43417249,3132.2,3131.8,2.23507]
[1720837911699,1.10621795,3132.1,3131.9,0.17831872]
[1720837911934,1.10621795,3132.0,3131.9,2.41337872]
[1720837914018,1.10621795,3132.0,3131.9,0.17831872]
[1720837914319,2.43417249,3132.0,3131.9,0.17831872]
[1720837914912,2.84364998,3132.0,3131.9,0.17831872]
[1720837915286,1.51569544,3132.0,3131.7,2.23519]
[1720837915485,2.43598433,3131.9,3131.7,2.23519]
[1720837915690,1.10624323,3131.8,3131.7,2.23519]
[1720837916301,2.43598433,3131.8,3131.7,2.23519]
[1720837916619,1.10624323,3131.8,3131.7,2.23519]
[1720837917023,1.3297411,3131.9,3131.7,2.23519]
[1720837917322,2.07125387,3132.0,3131.7,2.23519]
[1720837917323,2.43599402,3131.8,3131.7,2.23519]
[1720837918322,2.43601337,3131.8,3131.7,2.23519]
[1720837919825,1.10627227,3131.8,3131.7,4.47039]
[1720837921101,1.3297411,3132.0,3131.9,2.23506]
[1720837921326,2.43592286,3132.0,3131.9,2.23506]
[1720837921537,2.43591733,3132.0,3131.9,2.23506]
[1720837921696,2.43591733,3132.0,3131.9,2.41344359]
[1720837921897,2.43591733,3132.0,3131.9,5.19496095]
[1720837922109,1.10617623,3132.0,3131.9,5.19496095]
[1720837922429,2.43591733,3132.0,3131.9,4.64850359]
[1720837924204,7.38,3132.5,3132.1,2.23489]
[1720837924401,3.10220653,3132.4,3132.1,2.23489]
[1720837924597,7.38,3132.5,3132.1,4.46978]
[1720837924598,1.66379988,3132.2,3132.1,4.46978]
[1720837924835,1.66379988,3132.3,3132.2,2.23485]
[1720837925030,1.10605512,3132.3,3132.2,2.23485]
[1720837925230,2.769855,3132.3,3132.2,2.23485]
[1720837926533,1.10605512,3132.3,3132.1,5.28578]
[1720837926701,1.10605512,3132.2,3132.1,5.28578]
[1720837927102,1.10605512,3132.3,3132.1,3.05086]
[1720837927417,0.31021057,3132.2,3132.1,2.23486]
[1720837927620,1.4163223,3132.2,3132.1,2.23486]
[1720837929316,3.41358473,3132.2,3132.1,2.23486]
[1720837930844,0.31021057,3132.2,3132.1,2.23486]
[1720837931137,1.10609863,3132.2,3132.1,2.23486]
[1720837931324,4.72900441,3132.3,3132.1,2.23486]
[1720837931641,1.10615206,3132.2,3132.1,2.23486]
[1720837932920,3.43875647,3132.2,3132.1,2.23486]
[1720837933963,1.10619253,3132.2,3132.1,2.23486]
[1720837934109,3.43880535,3132.2,3132.1,2.23486]
[1720837934315,1.10620055,3132.2,3132.1,2.23486]
[1720837934820,3.10549923,3132.2,3132.1,2.23486]
[1720837935019,1.10620055,3132.2,3132.1,2.23486]
[1720837935833,3.10547465,3132.2,3132.1,2.23486]
[1720837936539,3.10547465,3132.2,3132.1,2.41306509]
[1720837937718,3.10539383,3132.2,3132.1,2.41306509]
[1720837941138,2.3964,3132.7,3132.2,2.23484]
[1720837941339,2.33244847,3132.5,3132.2,2.23484]
[1720837941511,2.33244847,3132.5,3132.3,0.17803924]
[1720837941712,1.10606875,3132.4,3132.3,0.17803924]
[1720837942018,1.10606875,3132.4,3132.2,2.23484]
[1720837942338,1.10606875,3132.3,3132.2,2.23484]
[1720837942539,3.10528243,3132.3,3132.2,2.23484]
[1720837943528,1.10606875,3132.3,3132.2,2.23484]
[1720837944513,1.10611826,3132.3,3132.2,2.23484]
[1720837946538,3.43961173,3132.3,3132.2,2.23484]
[1720837946740,1.10611826,3132.3,3132.2,2.23484]
[1720837947837,0.57304682,3132.6,3132.2,2.23484]
[1720837948148,2.33321979,3132.4,3132.2,2.23484]
[1720837948313,1.10613067,3132.3,3132.2,2.23484]
[1720837950018,1.10613067,3132.3,3132.2,4.66614]
[1720837950210,1.10613067,3132.3,3132.2,2.23484]
[1720837951115,1.10613067,3132.3,3132.2,2.41297224]
[1720837951312,1.10609697,3132.3,3132.2,2.41297224]
[1720837952313,1.6987496,3132.3,3132.2,0.17813224]
[1720837952542,4.03167897,3132.3,3132.2,0.17813224]
[1720837952746,4.03167897,3132.3,3131.9,3.05105]
[1720837953066,1.99951051,3132.0,3131.9,3.05105]
[1720837953361,3.10560748,3132.0,3131.9,3.05105]
[1720837953924,1.10609697,3132.0,3131.9,3.05105]
[1720837954749,2.4875,3132.5,3131.9,3.05105]
[1720837954951,1.99991269,3132.1,3131.9,3.05105]
[1720837955150,3.68810618,3132.4,3131.9,3.05105]
[1720837955151,2.33323147,3132.3,3131.9,3.05105]
[1720837955347,1.10612451,3132.0,3131.9,3.05105]
[1720837955528,3.10600872,3132.0,3131.9,3.05105]
[1720837955728,1.10612451,3132.0,3131.9,3.05105]
[1720837956350,3.10600872,3132.0,3131.9,3.05105]
[1720837956575,1.10612451,3132.0,3131.9,3.05105]
[1720837956867,3.10600872,3132.0,3131.9,3.05105]
[1720837957067,3.10600872,3132.0,3131.9,0.816]
[1720837957274,3.41660959,3132.0,3131.8,2.23506]
[1720837957450,3.10600872,3131.9,3131.6,2.23524]
[1720837957653,1.99988421,3131.7,3131.6,2.23524]
[1720837957846,3.10600872,3131.7,3131.6,2.23524]
[1720837958070,0.31060087,3132.0,3131.6,2.23524]
[1720837958272,1.99996362,3131.7,3131.6,2.23524]
[1720837958440,3.10624606,3131.7,3131.6,2.23524]
[1720837959268,1.10628244,3131.7,3131.6,2.23524]
[1720837959476,3.1060539,3131.7,3131.6,2.23524]
[1720837960471,1.10628244,3131.7,3131.6,2.23524]
[1720837960770,3.10588958,3131.7,3131.5,0.816]
[1720837960947,1.10628244,3131.6,3131.5,0.816]
[1720837961282,1.10628244,3131.6,3131.5,5.38005]
[1720837961574,1.99954697,3131.8,3131.6,2.23521]
[1720837961877,1.10625822,3131.7,3131.6,2.23521]
[1720837962040,1.10625822,3131.7,3131.6,3.05121]
[1720837964244,3.10580519,3131.7,3131.6,3.05121]
[1720837964855,2.00034965,3131.7,3131.6,3.05121]
[1720837965161,3.10662083,3131.7,3131.6,3.05121]
[1720837966173,3.10662083,3131.7,3131.6,3.22988451]
[1720837968175,2.00035666,3131.7,3131.6,3.22988451]
[1720837968476,3.10664253,3131.7,3131.6,3.22988451]
[1720837968839,3.10670525,3131.7,3131.6,3.22988451]
[1720837971261,1.10628587,3131.7,3131.6,3.22988451]
[1720837971556,2.00041938,3131.8,3131.6,3.22988451]
[1720837971746,1.10622132,3131.7,3131.6,3.22988451]
[1720837975161,1.10626032,3131.7,3131.6,3.22988451]
[1720837977285,1.10627119,3131.7,3131.6,3.22988451]
[1720837978786,1.10627428,3131.7,3131.6,3.22988451]
[1720837980051,1.10627428,3131.7,3131.6,5.46515451]
[1720837980257,2.77357754,3131.7,3131.6,8.34038396]
[1720837980616,2.44012951,3131.7,3131.6,10.57565396]
[1720837980888,1.33385523,3131.9,3131.8,6.90596]
[1720837981055,2.43988416,3131.9,3131.8,8.70558894]
[1720837981251,2.0008248,3132.3,3132.2,2.23484]
[1720837981456,1.10609732,3132.3,3132.2,3.05084]
[1720837981881,1.10609247,3132.3,3132.2,3.05084]
[1720837982085,3.10732198,3132.3,3132.2,3.22900005]
[1720837983598,6.85393318,3132.3,3132.2,2.41300005]
[1720837983799,6.85393318,3132.3,3132.2,0.17816005]
[1720837983800,4.85270367,3132.3,3132.2,0.17816005]
[1720837983973,2.4644,3132.2,3131.6,4.47048]
[1720837984301,2.00098031,3131.8,3131.6,2.23522]
[1720837984470,1.10627225,3131.7,3131.6,2.23522]
[1720837984676,1.10627303,3131.7,3131.6,2.23522]
[1720837984983,3.10704426,3131.7,3131.6,2.23522]
[1720837985377,1.10627303,3131.7,3131.6,3.05122]
[1720837986274,3.10704426,3131.7,3131.6,3.05122]
[1720837987896,3.10717086,3131.7,3131.6,3.05122]
[1720837988882,3.10725379,3131.7,3131.6,3.05122]
[1720837991386,1.10630443,3131.7,3131.6,3.05122]
[1720837991979,1.10630443,3131.7,3131.6,0.816]
[1720837994810,5.1425755,3131.7,3131.4,0.816]
[1720837994991,5.90487373,3131.7,3131.4,0.816]
[1720837995194,2.4644,3131.7,3131.4,0.816]
[1720837995394,1.10639692,3131.6,3131.4,3.05142]
[1720837995697,1.10639692,3131.5,3131.4,3.05142]
[1720837996509,3.10714283,3131.5,3131.4,3.05142]
[1720837997727,1.10639692,3131.5,3131.4,3.05142]
[1720837998035,1.10631501,3131.5,3131.4,3.05142]
[1720837998330,1.10630794,3131.5,3131.4,3.05142]
[1720837999208,3.10719345,3131.5,3131.4,3.05142]
[1720837999508,1.10630794,3131.5,3131.4,3.05142]
[1720838000225,3.10719345,3131.5,3131.4,3.05142]
[1720838001513,2.4644,3131.8,3131.4,3.05142]
[1720838001835,2.00117294,3131.5,3131.4,3.05142]
[1720838002002,3.10753285,3131.5,3131.4,3.05142]
[1720838003612,3.44164532,3131.5,3131.4,3.05142]
[1720838004936,0.33411247,3131.5,3131.4,3.05142]
[1720838005111,3.44128097,3131.5,3131.4,3.05142]
[1720838005518,3.44116603,3131.5,3131.4,3.05142]
[1720838008040,3.44117111,3131.5,3131.4,3.05142]
[1720838008264,0.33411247,3131.5,3131.4,3.05142]
[1720838008405,3.44112946,3131.5,3131.4,3.05142]
[1720838011152,3.44112946,3131.5,3131.4,3.22446779]
[1720838011667,0.33411247,3131.5,3131.4,3.22446779]
[1720838011818,3.44103513,3131.5,3131.4,3.22446779]
[1720838012360,3.44103513,3131.5,3131.4,0.17304779]